bitfinex-derivatives/quotes_ETHF0:USTF0_20230403
["timestamp","ask_amount","ask_price","bid_price","bid_amount"]
[1680505731267,3.2078,1789.0,1788.8,1.111]
[1680505732064,3.2078,1789.0,1788.7,1.111]
[1680505735071,3.2078,1788.8,1788.7,1.111]
[1680505735269,5.08279453,1789.0,1788.7,1.111]
[1680505735472,3.2078,1788.8,1788.7,1.111]
[1680505736066,4.08279453,1788.9,1788.7,1.111]
[1680505738177,5.19979453,1788.9,1788.5,1.117]
[1680505738475,4.3238,1788.7,1788.3,14.60716357]
[1680505738667,3.2078,1788.5,1788.3,1.109]
[1680505738868,4.3238,1788.7,1788.3,1.109]
[1680505739072,4.3238,1788.7,1788.3,1.68856357]
[1680505740281,5.19879453,1788.7,1788.3,1.109]
[1680505741779,1.21554535,1788.8,1788.5,1.109]
[1680505741780,0.92058009,1788.8,1788.5,1.109]
[1680505742278,0.92058009,1788.8,1788.6,1.111]
[1680505743371,0.87499453,1788.7,1788.6,1.111]
[1680505743570,0.87499453,1788.7,1788.4,1.117]
[1680505744677,4.08279453,1788.7,1788.4,1.117]
[1680505745274,3.2078,1788.5,1788.2,1.117]
[1680505745480,1.0,1788.4,1788.2,1.117]
[1680505745672,1.0,1788.5,1788.2,1.117]
[1680505745874,5.19979453,1788.6,1788.2,1.117]
[1680505746983,1.07505032,1788.5,1788.2,1.117]
[1680505747184,1.0,1788.4,1788.2,1.117]
[1680505747379,2.07505032,1788.5,1788.2,1.117]
[1680505747678,3.2078,1788.4,1788.2,1.117]
[1680505748981,0.78503066,1788.5,1788.2,2.117]
[1680505749287,0.78503066,1788.5,1788.2,1.117]
[1680505751587,3.2078,1788.4,1788.2,1.117]
[1680505752083,4.3248,1788.4,1788.1,3.78736357]
[1680505752890,4.3248,1788.4,1788.1,0.57956357]
[1680505753390,4.3248,1788.4,1788.0,2.24957603]
[1680505753883,4.3248,1788.4,1788.0,3.12053977]
[1680505754290,4.3248,1788.4,1788.0,2.24957603]
[1680505755292,1.117,1788.4,1788.0,3.24957603]
[1680505755493,1.117,1788.4,1788.1,3.78736357]
[1680505756296,0.20005579,1788.5,1788.3,1.111]
[1680505756593,0.20005579,1788.5,1788.3,4.3188]
[1680505757092,0.20005579,1788.5,1788.4,1.117]
[1680505757492,1.4599694,1788.7,1788.4,1.117]
[1680505758699,0.58497487,1788.6,1788.4,1.117]
[1680505759085,1.4599694,1788.7,1788.4,1.117]
[1680505759491,0.58497487,1788.7,1788.4,1.117]
[1680505760895,2.4599694,1788.7,1788.4,1.117]
[1680505761395,0.58497487,1788.7,1788.4,1.117]
[1680505761697,1.58497487,1788.7,1788.4,1.117]
[1680505761898,0.20111411,1788.6,1788.4,1.117]
[1680505762098,0.20111411,1788.6,1788.3,4.3188]
[1680505763399,1.117,1788.4,1788.1,0.57956357]
[1680505763595,4.3248,1788.4,1788.0,1.13857603]
[1680505763796,1.117,1788.4,1788.0,2.25557603]
[1680505765298,1.69397487,1788.5,1788.1,1.109]
[1680505765499,1.109,1788.5,1788.1,4.89636357]
[1680505765992,1.109,1788.5,1788.1,4.3168]
[1680505767094,1.109,1788.5,1788.1,4.89636357]
[1680505768993,1.69397487,1788.5,1788.1,4.3168]
[1680505769194,1.69397487,1788.5,1788.1,4.89636357]
[1680505769495,1.69397487,1788.5,1788.1,1.68856357]
[1680505772400,0.58497487,1788.4,1788.1,1.109]
[1680505772606,1.117,1788.3,1788.0,0.57956357]
[1680505773195,1.117,1788.3,1788.0,1.45052731]
[1680505773398,1.117,1788.3,1788.0,0.57956357]
[1680505773607,1.70197487,1788.3,1788.0,0.57956357]
[1680505774199,1.117,1788.3,1788.0,0.57956357]
[1680505774404,1.70197487,1788.3,1788.0,0.57956357]
[1680505775100,1.70197487,1788.3,1788.0,1.45052731]
[1680505776298,1.70197487,1788.3,1788.0,0.57956357]
[1680505776905,0.20103786,1788.2,1788.0,1.45052731]
[1680505777096,0.20103786,1788.2,1788.1,0.57956357]
[1680505780803,0.20103786,1788.2,1788.1,0.57441089]
[1680505781211,0.78601273,1788.2,1788.1,0.57441089]
[1680505783109,0.78601273,1788.2,1788.1,0.87096374]
[1680505786720,1.66100726,1788.2,1788.0,0.87096374]
[1680505787417,0.78601273,1788.2,1788.1,4.07876374]
[1680505789827,0.78601273,1788.2,1788.1,0.87096374]
[1680505792222,0.78601273,1788.2,1788.1,1.97996374]
[1680505792522,0.78601273,1788.2,1788.1,5.18776374]
[1680505793318,0.78601273,1788.2,1788.1,1.97996374]
[1680505794529,0.78601273,1788.2,1788.1,0.87096374]
[1680505794731,1.66100726,1788.2,1788.1,0.87096374]
[1680505794924,1.07603239,1788.2,1788.0,0.87096374]
[1680505795231,0.58632543,1788.1,1788.0,0.87096374]
[1680505795423,0.80114219,1788.1,1788.0,0.87096374]
[1680505797131,1.91814219,1788.1,1788.0,0.87096374]
[1680505797430,2.20681129,1788.1,1787.9,4.62625365]
[1680505797622,0.58625924,1788.0,1787.9,4.62625365]
[1680505799326,2.79307053,1788.1,1787.9,4.62625365]
[1680505801031,1.918076,1788.1,1787.9,4.62625365]
[1680505802035,1.67607053,1788.1,1787.9,4.62625365]
[1680505802329,0.801076,1788.1,1787.9,4.62625365]
[1680505805237,1.67607053,1788.1,1787.9,4.62625365]
[1680505805738,1.67607053,1788.1,1787.9,4.07876374]
[1680505806241,1.7440769,1788.1,1787.9,4.07876374]
[1680505807338,0.58625924,1788.0,1787.9,4.07876374]
[1680505809940,1.67607053,1788.1,1787.9,4.07876374]
[1680505810435,0.58625924,1788.0,1787.9,4.07876374]
[1680505810631,1.67607053,1788.1,1787.9,4.07876374]
[1680505811638,0.58625924,1788.0,1787.9,4.07876374]
[1680505816231,0.87499453,1788.0,1787.8,2.54730994]
[1680505816437,0.58628347,1787.9,1787.8,1.97996374]
[1680505816638,1.58628347,1787.9,1787.8,0.87096374]
[1680505817241,1.58628347,1787.9,1787.7,4.07876374]
[1680505818146,1.58628347,1787.9,1787.7,0.87096374]
[1680505818147,0.58628347,1787.9,1787.7,0.87096374]
[1680505818945,0.58628347,1787.9,1787.8,0.87096374]
[1680505819239,0.58628347,1787.9,1787.7,4.63743926]
[1680505819444,0.58628347,1787.9,1787.7,1.42963926]
[1680505820042,0.58628347,1787.9,1787.7,4.63743926]
[1680505820342,0.58628347,1787.9,1787.7,1.42963926]
[1680505820735,0.58628347,1787.9,1787.7,0.87096374]
[1680505821347,0.24620705,1787.8,1787.7,0.87096374]
[1680505823248,1.08020705,1787.8,1787.7,0.87096374]
[1680505823448,1.08020705,1787.8,1787.6,1.42008029]
[1680505823449,1.66649052,1787.8,1787.6,1.42008029]
[1680505826550,1.66649052,1787.8,1787.6,0.54911655]
[1680505826842,1.66649052,1787.8,1787.5,4.07876374]
[1680505828354,0.83249052,1787.8,1787.6,0.839]
[1680505828757,0.24620705,1787.8,1787.6,0.839]
[1680505829252,0.83249052,1787.8,1787.6,0.839]
[1680505830753,0.24620705,1787.8,1787.6,0.839]
[1680505831656,0.83249052,1787.8,1787.6,0.839]
[1680505831852,0.24620705,1787.8,1787.6,0.839]
[1680505832249,0.83249052,1787.8,1787.6,0.839]
[1680505832448,0.24620705,1787.8,1787.6,0.839]
[1680505832955,0.24620705,1787.8,1787.6,1.38748181]
[1680505836558,0.36415006,1787.8,1787.6,1.38748181]
[1680505837162,0.95043353,1787.8,1787.6,1.38748181]
[1680505837650,0.36415006,1787.8,1787.6,1.38748181]
[1680505837855,0.95043353,1787.8,1787.6,1.38748181]
[1680505839560,1.78943353,1787.8,1787.6,0.54848181]
[1680505839758,1.78943353,1787.8,1787.5,4.91076374]
[1680505840663,5.87222806,1787.8,1787.5,1.70296374]
[1680505841361,4.99723353,1787.8,1787.5,1.70296374]
[1680505842257,5.87222806,1787.8,1787.5,1.70296374]
[1680505843355,4.99723353,1787.8,1787.5,1.70296374]
[1680505843560,1.78943353,1787.8,1787.5,4.91076374]
[1680505844359,1.78943353,1787.8,1787.5,1.70296374]
[1680505845463,5.87222806,1787.8,1787.5,1.70296374]
[1680505845663,2.66442806,1787.8,1787.5,1.70296374]
[1680505845855,1.78943353,1787.8,1787.5,1.70296374]
[1680505846050,0.58628347,1787.7,1787.5,1.70296374]
[1680505846261,2.66442806,1787.8,1787.5,1.70296374]
[1680505846455,3.09426366,1787.8,1787.5,1.70296374]
[1680505846657,3.09426366,1787.8,1787.5,4.91076374]
[1680505846853,0.58628347,1787.7,1787.5,1.70296374]
[1680505847063,1.58628347,1787.7,1787.5,1.70296374]
[1680505847263,0.58628347,1787.7,1787.5,1.70296374]
[1680505851367,0.36613724,1787.6,1787.5,1.70296374]
[1680505851667,1.58628347,1787.7,1787.5,1.70296374]
[1680505851857,0.58628347,1787.7,1787.5,1.70296374]
[1680505852866,0.839,1787.6,1787.5,0.87096374]
[1680505853367,1.42528347,1787.6,1787.4,0.87096374]
[1680505854370,0.839,1787.6,1787.4,0.87096374]
[1680505855171,1.42528347,1787.6,1787.4,0.87096374]
[1680505859057,1.41950046,1787.6,1787.4,0.87096374]
[1680505862071,0.58628347,1787.6,1787.4,1.70996374]
[1680505862769,0.58628347,1787.6,1787.5,0.87096374]
[1680505863574,1.461278,1787.6,1787.5,0.87096374]
[1680505863966,1.461278,1787.6,1787.4,1.70996374]
[1680505864573,0.58628347,1787.6,1787.5,0.87096374]
[1680505864968,0.58628347,1787.6,1787.5,4.07876374]
[1680505865266,0.87499453,1787.6,1787.5,0.87096374]
[1680505865471,0.58657063,1787.6,1787.5,0.87096374]
[1680505865864,1.46156516,1787.6,1787.5,0.87096374]
[1680505866071,0.58657063,1787.6,1787.5,4.07876374]
[1680505866380,1.06126738,1787.6,1787.5,0.87096374]
[1680505866574,1.06126738,1787.6,1787.5,4.07876374]
[1680505866772,1.93626191,1787.6,1787.5,4.07876374]
[1680505866972,1.34971055,1787.6,1787.5,0.87096374]
[1680505867876,1.34971055,1787.6,1787.4,1.70996374]
[1680505868069,0.58660704,1787.5,1787.4,1.70996374]
[1680505872167,0.58660704,1787.5,1787.4,0.87096374]
[1680505875374,2.77231759,1787.6,1787.3,5.20811504]
[1680505875580,1.34971055,1787.6,1787.5,0.834]
[1680505875781,1.34971055,1787.6,1787.5,5.74661637]
[1680505875782,1.06122354,1787.6,1787.5,5.74661637]
[1680505876277,0.47471602,1787.6,1787.5,6.03511504]
[1680505876473,0.58650752,1787.7,1787.5,7.03511504]
[1680505876678,0.58650752,1787.7,1787.6,2.71163461]
[1680505877386,1.46150205,1787.9,1787.7,0.832]
[1680505877591,0.58650752,1787.9,1787.8,4.91212583]
[1680505878088,0.58650752,1788.0,1787.8,5.91165757]
[1680505878291,0.58650752,1788.0,1787.9,0.833]
[1680505878581,0.58650752,1788.0,1787.9,1.833]
[1680505879084,0.58650752,1788.0,1787.9,0.833]
[1680505879284,0.58650752,1788.0,1787.9,1.833]
[1680505880094,0.58650752,1788.1,1787.9,1.833]
[1680505880382,2.0299107,1788.3,1788.0,6.91775868]
[1680505880582,0.58650752,1788.4,1788.2,4.8858]
[1680505880786,0.58650752,1788.4,1788.3,0.832]
[1680505880982,0.58650752,1788.5,1788.3,1.832]
[1680505881287,0.58650752,1788.5,1788.4,4.0438]
[1680505881485,1.46150205,1788.5,1788.4,4.0438]
[1680505881679,0.58650752,1788.5,1788.4,4.0438]
[1680505882090,0.58650752,1788.6,1788.4,4.0468]
[1680505882985,1.46150205,1788.6,1788.4,4.0468]
[1680505883188,0.58650752,1788.6,1788.4,4.0468]
[1680505884584,2.30050205,1788.7,1788.4,4.0468]
[1680505884785,1.42550752,1788.7,1788.6,3.2078]
[1680505885086,2.30050205,1788.7,1788.5,3.2078]
[1680505885288,2.30050205,1788.7,1788.4,0.839]
[1680505885691,1.42550752,1788.7,1788.5,3.2078]
[1680505886280,1.42550752,1788.7,1788.4,0.839]
[1680505886689,1.42550752,1788.7,1788.3,3.2078]
[1680505886690,0.839,1788.5,1788.3,3.2078]
[1680505893590,0.837,1788.4,1788.3,3.2078]
[1680505893783,0.837,1788.4,1787.9,1.0]
[1680505893784,0.839,1788.3,1788.1,3.2078]
[1680505893983,0.839,1788.2,1788.1,3.2078]
[1680505895291,0.839,1788.2,1787.9,4.0398]
[1680505896392,0.1722087,1788.1,1787.9,4.0398]
[1680505896790,1.0,1788.1,1787.9,4.0398]
[1680505896994,0.839,1788.2,1787.9,4.0398]
[1680505897596,0.839,1788.0,1787.9,3.2078]
[1680505902098,0.834,1788.1,1787.9,3.2078]
[1680505903097,0.839,1788.3,1788.0,0.839]
[1680505903302,0.839,1788.3,1788.1,3.2078]
[1680505905296,2.85326243,1788.5,1788.2,0.839]
[1680505905499,1.9782679,1788.5,1788.3,3.2078]
[1680505905699,1.9782679,1788.5,1788.0,3.2078]
[1680505906103,1.9782679,1788.5,1788.2,3.2078]
[1680505906104,0.03804349,1788.4,1788.2,3.2078]
[1680505906303,0.03804349,1788.4,1788.2,4.0468]
[1680505912111,0.03804349,1788.4,1788.2,3.2078]
[1680505912112,0.87504349,1788.4,1788.2,3.2078]
[1680505915011,1.46155101,1788.4,1788.2,3.2078]
[1680505915208,0.87504349,1788.4,1788.2,3.2078]
[1680505915911,1.46155101,1788.4,1788.2,3.2078]
[1680505917612,0.87504349,1788.4,1788.2,3.2078]
[1680505917810,1.46155101,1788.4,1788.2,3.2078]
[1680505920115,0.58650752,1788.3,1788.2,3.2078]
[1680505920611,0.627782,1788.3,1788.2,3.2078]
[1680505925222,1.50277653,1788.3,1788.2,3.2078]
[1680505925421,0.627782,1788.3,1788.2,3.2078]
[1680505926122,1.50277653,1788.3,1788.2,3.2078]
[1680505926516,0.627782,1788.3,1788.2,3.2078]
[1680505927224,1.50277653,1788.3,1788.2,3.2078]
[1680505928325,1.5020375,1788.3,1788.2,3.2078]
[1680505928513,0.91626901,1788.3,1788.2,3.2078]
[1680505928715,1.50204457,1788.3,1788.2,3.2078]
[1680505928923,0.91626901,1788.3,1788.2,3.2078]
[1680505931826,0.91626901,1788.3,1788.1,1.41780434]
[1680505932028,1.75126901,1788.3,1788.2,3.2078]
[1680505932429,1.75126901,1788.3,1788.1,0.57880434]
[1680505932723,0.58603504,1788.2,1788.1,0.57880434]
[1680505933229,0.62918101,1788.2,1788.1,0.57880434]
[1680505936923,1.50417554,1788.2,1788.1,0.57880434]
[1680505937136,0.62918101,1788.2,1788.1,0.57880434]
[1680505937434,0.62918101,1788.2,1788.1,0.5720751]
[1680505937929,1.50417554,1788.2,1788.1,0.5720751]
[1680505938129,1.50417554,1788.2,1788.1,1.44303563]
[1680505938330,0.62918101,1788.2,1788.1,1.44303563]
[1680505938530,1.5044452,1788.2,1788.1,0.5720751]
[1680505938731,0.9181405,1788.2,1788.1,0.5720751]
[1680505939729,1.7551405,1788.2,1788.1,0.5720751]
[1680505942938,0.88014597,1788.2,1788.0,4.07876053]
[1680505943133,1.42036656,1788.1,1788.0,4.07876053]
[1680505943533,1.46508813,1788.1,1788.0,4.07876053]
[1680505945343,2.34463797,1788.1,1788.0,4.07876053]
[1680505945736,1.75827141,1788.1,1788.0,4.07876053]
[1680505946942,1.75827141,1788.1,1788.0,0.87096053]
[1680505947243,1.75827141,1788.1,1787.9,0.87096053]
[1680505947447,0.58651779,1788.0,1787.9,0.87096053]
[1680505948034,3.59347758,1788.0,1787.9,0.87096053]
[1680505948335,1.0,1787.9,1787.8,0.87096053]
[1680505948535,2.71407292,1787.9,1787.8,0.87096053]
[1680505949332,1.71407292,1787.9,1787.7,0.87096053]
[1680505949535,0.58641364,1787.8,1787.7,0.87096053]
[1680505950932,0.58641364,1787.8,1787.6,5.7810533]
[1680505950933,1.88007292,1787.8,1787.6,5.48891272]
[1680505951144,1.58611467,1787.8,1787.6,5.48891272]
[1680505951338,0.58611467,1787.8,1787.6,5.48891272]
[1680505952134,1.42511467,1787.8,1787.6,4.64991272]
[1680505953150,1.42511467,1787.8,1787.6,3.77895219]
[1680505953440,1.42511467,1787.8,1787.6,3.2078]
[1680505955245,1.42511467,1787.8,1787.5,1.70996053]
[1680505956340,0.18740205,1787.7,1787.5,1.70996053]
[1680505957944,0.18740205,1787.7,1787.5,0.839]
[1680505962144,0.839,1787.6,1787.4,4.91776053]
[1680505963046,0.839,1787.6,1787.4,4.0468]
[1680505971549,0.28661701,1787.5,1787.4,4.0468]
[1680505972256,0.836,1787.7,1787.4,4.0468]
[1680505974964,0.836,1787.7,1787.6,3.2078]
[1680505977152,0.835,1787.7,1787.6,3.2078]
[1680505977357,1.83289212,1787.7,1787.4,3.2078]
[1680505977557,0.839,1787.5,1787.4,3.2078]
[1680505980966,0.839,1787.5,1787.4,4.07876053]
[1680505982165,0.834,1787.6,1787.4,4.07876053]
[1680505986669,0.43763497,1787.5,1787.4,4.07876053]
[1680505990969,0.43763497,1787.5,1787.4,4.37090111]
[1680505992073,1.27363497,1787.5,1787.4,4.37090111]
[1680505993671,1.27363497,1787.5,1787.4,5.06461548]
[1680505993974,1.27363497,1787.5,1787.4,5.06550325]
[1680505994173,1.27363497,1787.5,1787.4,5.36338526]
[1680505997180,0.43763497,1787.5,1787.4,6.20238526]
[1680506003185,1.02374964,1787.5,1787.4,6.20238526]
[1680506003386,0.43763497,1787.5,1787.4,6.20238526]
[1680506005483,1.02374964,1787.5,1787.4,6.20238526]
[1680506005787,1.02374964,1787.5,1787.4,5.90520518]
[1680506008082,1.02374964,1787.5,1787.4,4.74051437]
[1680506008284,1.02374964,1787.5,1787.4,5.90520588]
[1680506009978,3.00895979,1787.7,1787.5,0.834]
[1680506009979,0.58611467,1787.7,1787.5,0.834]
[1680506010184,1.46618759,1787.8,1787.7,0.839]
[1680506010381,0.58611467,1787.8,1787.7,3.53071272]
[1680506010594,0.58611467,1787.8,1787.7,4.53071455]
[1680506011589,0.58611467,1787.8,1787.7,3.83709569]
[1680506011981,0.58611467,1787.8,1787.7,3.00309569]
[1680506012787,1.46618759,1787.9,1787.8,1.0]
[1680506012986,1.46618759,1787.9,1787.8,5.91952377]
[1680506013383,0.58611467,1787.9,1787.8,5.91952377]
[1680506015392,1.46618759,1788.0,1787.8,5.91952377]
[1680506015596,1.46618759,1788.0,1787.9,1.0]
[1680506016393,0.58611467,1788.0,1787.9,1.0]
[1680506016594,0.58611467,1788.0,1787.9,1.839]
[1680506016796,0.58611467,1788.1,1787.9,2.71172377]
[1680506016996,0.58611467,1788.1,1788.0,4.0468]
[1680506017594,0.7229305,1788.1,1788.0,4.0468]
[1680506019390,0.13681583,1788.1,1788.0,4.0468]
[1680506019590,0.58611467,1788.2,1788.0,4.0468]
[1680506019787,0.58611467,1788.2,1788.1,1.0]
[1680506021891,2.30518759,1788.3,1788.1,1.0]
[1680506022100,0.88007292,1788.3,1788.2,3.2078]
[1680506022398,1.46546515,1788.3,1788.2,3.2078]
[1680506022794,0.88007292,1788.3,1788.2,3.2078]
[1680506022996,0.58539402,1788.3,1788.2,3.2078]
[1680506023194,0.58539402,1788.3,1788.2,3.26928945]
[1680506028400,0.58539402,1788.3,1788.2,0.06148945]
[1680506028605,1.42139402,1788.3,1788.0,3.2078]
[1680506028801,2.30146694,1788.3,1788.0,3.2078]
[1680506029006,0.58539402,1788.2,1788.0,3.2078]
[1680506029601,1.42139402,1788.3,1788.0,3.2078]
[1680506029902,1.42139402,1788.3,1788.2,3.2078]
[1680506031306,1.42139402,1788.3,1788.2,3.24611604]
[1680506034009,0.836,1788.3,1788.2,3.24611604]
[1680506034211,1.42139402,1788.3,1788.2,3.24611604]
[1680506035210,1.47075742,1788.3,1788.2,3.2078]
[1680506036007,0.0493634,1788.3,1788.2,4.0468]
[1680506036517,1.46546694,1788.5,1788.2,4.0468]
[1680506036803,0.88007292,1788.5,1788.4,3.2078]
[1680506037010,1.46492674,1788.5,1788.4,3.2078]
[1680506037611,1.4648575,1788.5,1788.4,3.2078]
[1680506038010,0.88007292,1788.5,1788.4,3.2078]
[1680506038210,1.46486186,1788.5,1788.4,3.2078]
[1680506038410,0.88007292,1788.5,1788.4,3.2078]
[1680506038805,2.55507292,1788.5,1788.4,3.2078]
[1680506039306,2.55507292,1788.5,1788.2,3.2078]
[1680506039506,0.839,1788.4,1788.2,3.2078]
[1680506039707,1.42381089,1788.4,1788.3,3.2078]
[1680506043607,0.839,1788.4,1788.3,3.2078]
[1680506043809,1.42381089,1788.4,1788.3,3.2078]
[1680506044215,0.839,1788.4,1788.3,3.2078]
[1680506044412,1.42381089,1788.4,1788.3,3.2078]
[1680506045316,0.839,1788.4,1788.3,3.2078]
[1680506046412,1.47271185,1788.4,1788.3,3.2078]
[1680506047406,0.88790096,1788.4,1788.3,3.2078]
[1680506047713,1.47271185,1788.4,1788.3,3.2078]
[1680506047913,0.88790096,1788.4,1788.3,3.2078]
[1680506048408,1.47271185,1788.4,1788.3,3.2078]
[1680506049019,0.63371185,1788.4,1788.3,4.0468]
[1680506049713,0.04890096,1788.4,1788.3,4.0468]
[1680506049913,0.63371185,1788.4,1788.3,4.0468]
[1680506050318,0.04890096,1788.4,1788.3,4.0468]
[1680506050916,0.58481089,1788.6,1788.3,4.12828024]
[1680506051122,0.58481089,1788.6,1788.5,4.0468]
[1680506052120,0.58481089,1788.6,1788.5,4.0408]
[1680506057627,0.58481089,1788.6,1788.5,3.2078]
[1680506058524,0.88007292,1788.6,1788.5,3.2078]
[1680506061526,0.88007292,1788.6,1788.5,3.2794105]
[1680506062722,0.88007292,1788.6,1788.5,0.0716105]
[1680506062922,0.88007292,1788.6,1788.5,3.2794105]
[1680506072133,0.88007292,1788.6,1788.5,4.1114105]
[1680506072723,1.46566084,1788.6,1788.5,4.1114105]
[1680506073628,0.58558792,1788.6,1788.5,4.1114105]
[1680506073828,1.46566084,1788.6,1788.5,4.1114105]
[1680506075329,0.88007292,1788.6,1788.5,4.1114105]
[1680506080237,1.46595745,1788.6,1788.5,4.1114105]
[1680506080545,1.46595934,1788.6,1788.5,4.1114105]
[1680506080746,0.88007292,1788.6,1788.5,4.1114105]
[1680506081745,0.88007292,1788.6,1788.5,4.69183463]
[1680506081948,0.88007292,1788.6,1788.5,4.1114105]
[1680506082242,0.88007292,1788.6,1788.5,3.27412318]
[1680506082834,0.88007292,1788.6,1788.5,3.85454731]
[1680506083232,0.88007292,1788.6,1788.5,3.27412318]
[1680506083746,0.88007292,1788.6,1788.5,3.85454731]
[1680506083946,0.88007292,1788.6,1788.5,3.27412318]
[1680506084345,0.88007292,1788.6,1788.5,3.85454731]
[1680506084547,0.88007292,1788.6,1788.5,3.27412318]
[1680506085457,0.88007292,1788.6,1788.5,3.85454731]
[1680506086846,0.88007292,1788.6,1788.5,3.27412318]
[1680506087139,0.88007292,1788.6,1788.5,3.85454731]
[1680506087536,0.88007292,1788.6,1788.5,3.27412318]
[1680506087746,0.88007292,1788.6,1788.5,3.85454731]
[1680506087942,0.88007292,1788.6,1788.5,3.27412318]
[1680506088145,0.88007292,1788.6,1788.5,3.85454731]
[1680506089451,0.87936038,1788.6,1788.5,3.85454731]
[1680506090250,0.87937246,1788.6,1788.5,3.85454731]
[1680506090446,0.87937445,1788.6,1788.5,3.85454731]
[1680506090652,2.00695979,1788.7,1788.5,3.85454731]
[1680506091248,0.87937092,1788.6,1788.5,3.85454731]
[1680506091553,2.00695979,1788.7,1788.5,3.85454731]
[1680506092051,0.87951403,1788.6,1788.5,3.85454731]
[1680506092556,2.04947382,1788.6,1788.5,3.85454731]
[1680506092853,0.87951403,1788.6,1788.5,3.85454731]
[1680506093059,2.04947382,1788.6,1788.5,3.85454731]
[1680506095745,2.04947382,1788.6,1788.5,0.58042413]
[1680506096050,2.04947382,1788.6,1788.5,0.63805036]
[1680506096551,2.04947382,1788.6,1788.5,3.84585036]
[1680506096752,2.04947382,1788.6,1788.5,4.71857413]
[1680506096949,2.04947382,1788.6,1788.5,4.13815]
[1680506097145,2.04947382,1788.6,1788.5,4.71986958]
[1680506098247,2.04947382,1788.6,1788.5,3.84714581]
[1680506099251,2.04947382,1788.6,1788.5,4.71986958]
[1680506099449,2.04947382,1788.6,1788.5,3.84714581]
[1680506100152,2.04947382,1788.6,1788.5,0.63934581]
[1680506100653,2.04947382,1788.6,1788.5,3.84714581]
[1680506104858,2.04947382,1788.6,1788.5,4.71986958]
[1680506105063,2.34602538,1788.6,1788.5,4.42952192]
[1680506105249,1.75943241,1788.6,1788.5,4.13786233]
[1680506106061,1.75943241,1788.6,1788.5,4.97686233]
[1680506115669,2.04947382,1788.6,1788.5,0.63925129]
[1680506115871,1.75937849,1788.6,1788.5,4.13786233]
[1680506117866,1.75937849,1788.6,1788.5,4.13774187]
[1680506122272,1.75937849,1788.6,1788.5,4.97674187]
[1680506124669,0.87951403,1788.6,1788.5,4.97674187]
[1680506125271,1.75939691,1788.6,1788.5,4.97674187]
[1680506135196,0.87951403,1788.6,1788.5,4.97674187]
[1680506135398,1.75945028,1788.6,1788.5,4.97674187]
[1680506135589,0.87951403,1788.6,1788.5,4.97674187]
[1680506135792,1.75948324,1788.6,1788.5,4.97674187]
[1680506135997,1.75948284,1788.6,1788.5,4.97674187]
[1680506136290,1.75947941,1788.6,1788.5,4.97674187]
[1680506136596,1.75947875,1788.6,1788.5,4.97674187]
[1680506141202,0.87951403,1788.6,1788.5,4.97674187]
[1680506141500,2.04947382,1788.6,1788.5,4.97674187]
[1680506141893,0.87951403,1788.6,1788.5,4.97674187]
[1680506143301,2.04947382,1788.6,1788.5,1.51160985]
[1680506143705,2.04947382,1788.6,1788.5,0.92994187]
[1680506144306,2.04947382,1788.6,1788.5,1.51158465]
[1680506144507,2.04947382,1788.6,1788.5,0.92994187]
[1680506145701,2.04947382,1788.6,1788.5,1.5116484]
[1680506146501,2.04947382,1788.6,1788.5,1.51163154]
[1680506146706,2.04947382,1788.6,1788.5,0.92994187]
[1680506147305,2.04947382,1788.6,1788.5,1.51162882]
[1680506148005,2.04947382,1788.6,1788.5,1.45400259]
[1680506149407,2.04947382,1788.6,1788.5,0.58168695]
[1680506152007,2.04947382,1788.6,1788.5,1.45400259]
[1680506152214,2.04947382,1788.6,1788.5,0.87231564]
[1680506152714,2.04947382,1788.6,1788.5,1.45394734]
[1680506153108,2.04947382,1788.6,1788.5,0.87231564]
[1680506154810,2.04947382,1788.6,1788.5,1.45393022]
[1680506155016,2.04947382,1788.6,1788.5,0.87231564]
[1680506156312,2.04947382,1788.6,1788.5,4.66172839]
[1680506156716,2.04947382,1788.6,1788.5,4.66172803]
[1680506157011,2.04947382,1788.6,1788.5,4.08011564]
[1680506157213,2.04947382,1788.6,1788.5,4.66172825]
[1680506158218,2.04947382,1788.6,1788.5,4.08011564]
[1680506158513,2.04947382,1788.6,1788.5,4.66172179]
[1680506158917,1.75948835,1788.6,1788.5,4.91911564]
[1680506159211,1.75948835,1788.6,1788.5,4.96222333]
[1680506163419,1.75948835,1788.6,1788.5,4.12322333]
[1680506163616,0.87951403,1788.6,1788.5,4.12322333]
[1680506164913,1.75950873,1788.6,1788.5,4.12322333]
[1680506166820,1.75953824,1788.6,1788.5,4.12322333]
[1680506168824,0.87951403,1788.6,1788.5,4.12322333]
[1680506169722,1.75954354,1788.6,1788.5,4.12322333]
[1680506172027,1.75954354,1788.6,1788.5,4.96222333]
[1680506177423,2.34613017,1788.6,1788.5,5.25400338]
[1680506177729,1.46610066,1788.6,1788.5,5.25400338]
[1680506177926,2.34613017,1788.6,1788.5,5.25400338]
[1680506178125,1.46610066,1788.6,1788.5,5.25400338]
[1680506178323,1.75954354,1788.6,1788.5,4.08990769]
[1680506178527,2.34608168,1788.6,1788.5,4.08990769]
[1680506178825,2.34608181,1788.6,1788.5,4.08990769]
[1680506179027,2.34608181,1788.6,1788.5,5.25400338]
[1680506179426,2.34608181,1788.6,1788.5,4.08990769]
[1680506179722,1.4660523,1788.6,1788.5,5.25400338]
[1680506180029,1.4660523,1788.6,1788.5,4.22003281]
[1680506185229,1.4660523,1788.6,1788.5,5.3841285]
[1680506185435,0.87951403,1788.6,1788.5,6.07742018]
[1680506185635,0.87951403,1788.6,1788.5,5.3841285]
[1680506185934,1.4660523,1788.6,1788.5,5.3841285]
[1680506186231,0.87951403,1788.6,1788.5,6.07741919]
[1680506194438,0.87951403,1788.6,1788.5,7.07741919]
[1680506194641,0.87592363,1788.6,1788.5,8.90074065]
[1680506194942,0.86390888,1788.6,1788.5,8.90074065]
[1680506195139,0.84178345,1788.6,1788.5,9.0705378]
[1680506195336,0.82156007,1788.6,1788.5,7.61539977]
[1680506195539,0.79998593,1788.6,1788.5,7.61539977]
[1680506195843,0.7799984,1788.6,1788.5,21.02857879]
[1680506196038,0.75860048,1788.6,1788.5,21.02857879]
[1680506196342,0.75860048,1788.6,1788.5,7.61539977]
[1680506196343,0.74178636,1788.6,1788.5,7.61539977]
[1680506196532,0.72110963,1788.6,1788.5,7.61539977]
[1680506196732,0.70180683,1788.6,1788.5,7.61539977]
[1680506197036,0.58653827,1789.0,1788.6,0.701]
[1680506197243,1.46656778,1789.2,1788.9,4.8748]
[1680506197544,0.58653827,1789.2,1789.1,4.62718652]
[1680506198337,0.58653827,1789.3,1789.1,4.0468]
[1680506198537,0.58653827,1789.3,1789.2,0.839]